fUST/lending_fUST_20241228
["ID","MTS","AMOUNT","RATE_DAILY","PERIOD"]
[346849766,1735325364477,-1357.33,0.00017797,2]
[346849767,1735325364499,-1300.78,0.00017797,2]
[346849768,1735325364520,-500.0,0.00017797,2]
[346849769,1735325364542,-182.76102468,0.00017806,2]
[346849770,1735325364563,-500.0,0.00017808,4]
[346849771,1735325364585,-500.0,0.00017972,2]
[346849772,1735325364609,-6695.98,0.00017973,2]
[346849773,1735325364630,-19328.87,0.00018,2]
[346849774,1735325364651,-7202.83,0.00018,2]
[346849775,1735325364728,2574.25803721,0.00013182,2]
[346849776,1735325369635,500.0,0.00013317,2]
[346849777,1735325369874,500.0,0.00013591,2]
[346849778,1735325370120,537.08,0.00013865,2]
[346849779,1735325370663,500.0,0.00013318,2]
[346849780,1735325375034,500.0,0.00013317,2]
[346849781,1735325376090,500.0,0.00013315,2]
[346849782,1735325376373,290.46,0.00013589,2]
[346849783,1735325391835,500.0,0.00013315,2]
[346849784,1735325392100,197.52,0.00013589,2]
[346849785,1735325403758,1673.99,0.00013315,2]
[346849786,1735325404025,1673.99,0.00013589,2]
[346849787,1735325404290,1673.99,0.00013863,2]
[346849788,1735325404694,1673.99,0.00014137,2]
[346849789,1735325404955,1673.99,0.00014411,2]
[346849790,1735325405241,1673.99,0.00014685,2]
[346849791,1735325405490,1673.99,0.00014959,2]
[346849792,1735325405759,1673.99,0.00015233,2]
[346849793,1735325406053,1673.99,0.00015507,2]
[346849794,1735325407510,500.0,0.00013318,2]
[346849795,1735325408084,500.0,0.00013592,2]
[346849796,1735325408959,181.63,0.00013866,2]
[346849797,1735325409327,1673.99,0.00015781,2]
[346849798,1735325410021,1673.99,0.00016055,2]
[346849799,1735325410297,1673.99,0.00016329,2]
[346849800,1735325410546,1673.99,0.00016603,2]
[346849801,1735325410802,1673.99,0.00016876,2]
[346849802,1735325411167,1673.99,0.0001715,2]
[346849803,1735325411576,1673.99,0.00017424,2]
[346849804,1735325411833,1673.99,0.00017698,2]
[346849805,1735325412094,1673.99,0.00017972,2]
[346849806,1735325423485,919.7664575,0.00017902,2]
[346849814,1735325432271,-493.65,0.00018071,2]
[346849815,1735325432287,-6.35,0.00018071,2]
[346849816,1735325432296,-500.0,0.00018246,2]
[346849817,1735325432306,-1370.1875,0.00018246,2]
[346849818,1735325432317,-303.8025,0.00018246,2]
[346849819,1735325432327,-500.0,0.00018345,2]
[346849820,1735325432336,-500.0,0.0001852,2]
[346849821,1735325432345,-300.0,0.0001852,2]
[346849822,1735325432354,-1673.99,0.0001852,2]
[346849823,1735325432364,-500.0,0.00018619,2]
[346849824,1735325432374,-500.0,0.00018671,2]
[346849825,1735325432383,-500.0,0.00018671,2]
[346849826,1735325432392,-500.0,0.00018671,2]
[346849827,1735325432402,-500.0,0.00018671,2]
[346849829,1735325432411,-500.0,0.00018671,2]
[346849830,1735325432420,-500.0,0.00018671,2]
[346849831,1735325432430,-500.0,0.00018671,2]
[346849832,1735325432439,-73.3127613,0.00018671,2]
[346849833,1735325432450,-426.6872387,0.00018671,2]
[346849834,1735325432461,-500.0,0.00018671,2]
[346849835,1735325432471,-500.0,0.00018671,2]
[346849836,1735325432480,-500.0,0.00018671,2]
[346849838,1735325432490,-203.0072189,0.00018671,2]
[346849839,1735325432499,-500.0,0.00018671,2]
[346849840,1735325432509,-504.37769987,0.00018671,2]
[346849841,1735325432518,-500.0,0.00018671,2]
[346849843,1735325432529,-500.0,0.00018671,2]
[346849845,1735325432540,-521.41,0.00018671,2]
[346849847,1735325432549,-500.0,0.00018671,2]
[346849849,1735325432559,-431.43679017,0.00018671,2]
[346849851,1735325432568,-500.0,0.00018671,2]
[346849852,1735325432577,-500.0,0.00018672,2]
[346849855,1735325432587,-505.55059981,0.00018672,2]
[346849857,1735325432596,-500.0,0.00018672,2]
[346849858,1735325432606,-500.0,0.00018672,2]
[346849860,1735325432616,-973.22,0.00018672,2]
[346849862,1735325432625,-500.0,0.00018794,2]
[346849864,1735325432635,-1673.99,0.00018794,2]
[346849866,1735325432644,-207.46,0.000188,7]
[346849868,1735325432653,-151.0,0.00018824,6]
[346849870,1735325432662,-500.0,0.00018893,2]
[346849872,1735325432672,-607.28158367,0.000189,2]
[346849874,1735325432682,-500.0,0.00018945,2]
[346849875,1735325432691,-500.0,0.00018945,2]
[346849876,1735325432701,-500.0,0.00018945,2]
[346849877,1735325432711,-420.04,0.00018945,2]
[346849879,1735325432721,-465.74,0.00018945,2]
[346849881,1735325432730,-422.41771024,0.00018945,2]
[346849883,1735325432741,-521.41,0.00018945,2]
[346849885,1735325432750,-500.0,0.00018945,2]
[346849887,1735325432759,-500.0,0.00018945,2]
[346849889,1735325432769,-500.0,0.00018946,2]
[346849891,1735325432780,-973.22,0.00018946,2]
[346849893,1735325432789,-500.0,0.00019068,2]
[346849895,1735325432799,-1673.99,0.00019068,2]
[346849897,1735325432808,-151.0,0.00019165,7]
[346849899,1735325432818,-500.0,0.00019167,2]
[346849901,1735325432827,-500.0,0.00019178,6]
[346849903,1735325432837,-500.0,0.00019178,2]
[346849905,1735325432846,-80.12456964,0.00019178,2]
[346849908,1735325432859,-397.79952424,0.00019178,2]
[346849910,1735325432871,-22.07590612,0.00019178,2]
[346849912,1735325432882,-564.94,0.00019178,2]
[346849914,1735325432891,-48.78116739,0.0001918,2]
[346849916,1735325432903,-615.84583261,0.0001918,2]
[346849918,1735325432912,-2790.15416738,0.00019194,2]
[346849939,1735325438145,-315.34137119,0.00019194,2]
[346849940,1735325438155,-500.0,0.00019219,2]
[346849941,1735325438164,-500.0,0.00019219,2]
[346849942,1735325438174,-164.30497361,0.00019219,2]
[346849943,1735325438184,-500.0,0.00019219,2]
[346849944,1735325438193,-500.0,0.0001922,2]
[346849945,1735325438203,-973.22,0.0001922,2]
[346849946,1735325438213,-704.5614268,0.00019233,2]
[346849947,1735325438223,-352.3665978,0.00019233,2]
[346849948,1735325438232,-500.0,0.00019342,2]
[346849949,1735325438242,-1673.99,0.00019342,2]
[346849950,1735325438252,-306.0,0.0001937,2]
[346849951,1735325438260,-426.6778935,0.0001937,2]
[346849952,1735325438269,-155.0875379,0.0001937,2]
[346849953,1735325438283,-19328.87,0.000194,2]
[346849954,1735325438292,-7202.83,0.000194,2]
[346849955,1735325438301,-500.0,0.00019441,2]
[346849956,1735325438311,-500.0,0.00019444,14]
[346849957,1735325438320,-500.0,0.00019493,2]
[346849958,1735325438330,-500.0,0.00019493,2]
[346849959,1735325438339,-500.0,0.00019493,2]
[346849960,1735325438348,-973.22,0.00019493,2]
[346849961,1735325438358,-500.0,0.00019493,2]
[346849962,1735325438367,-151.0,0.00019505,7]
[346849963,1735325438377,-163.28878494,0.00019615,2]
[346849964,1735325438387,-269.80300532,0.00019615,2]
[346849965,1735325438396,-554.43319401,0.00019615,2]
[346849966,1735325438405,-378.29,0.00019616,2]
[346849967,1735325438414,-1674.13,0.00019616,2]
[346849968,1735325438423,-500.0,0.00019715,2]
[346849969,1735325438433,-500.0,0.00019767,2]
[346849970,1735325438442,-235.54,0.00019767,2]
[346849971,1735325438451,-500.0,0.00019767,2]
[346849972,1735325438460,-973.22,0.00019767,2]
[346849973,1735325438470,-500.0,0.00019767,2]
[346849974,1735325438480,-151.0,0.00019846,7]
[346849975,1735325438489,-1000.0,0.000199,2]
[346849976,1735325438499,-151.4575985,0.00019985,2]
[346849977,1735325438508,-238.56,0.00019989,2]
[346849978,1735325438518,-2000.0,0.0002,2]
[346849979,1735325438529,-151.40492784,0.0002,2]
[346849980,1735325438539,-611.36150352,0.00020041,2]
[346849981,1735325438549,-500.0,0.00020041,2]
[346849982,1735325438558,-973.22,0.00020041,2]
[346849983,1735325438567,-500.0,0.00020041,2]
[346849984,1735325438577,-188.0,0.000201,2]
[346849985,1735325438587,-4171.9763721,0.00020102,2]
[346849986,1735325438596,-154.09298051,0.00020102,2]
[346849987,1735325438606,-154.09298051,0.00020102,2]
[346849988,1735325438616,-154.09298051,0.00020102,2]
[346849989,1735325438625,-154.09298051,0.00020102,2]
[346849990,1735325438635,-154.09298051,0.00020102,2]
[346849991,1735325438645,-154.09298051,0.00020102,2]
[346849992,1735325438654,-154.09298051,0.00020102,2]
[346849993,1735325438663,-154.09298051,0.00020102,2]
[346849994,1735325438672,-154.09298051,0.00020102,2]
[346849995,1735325438682,-154.09298051,0.00020102,2]
[346849996,1735325438692,-154.09298051,0.00020102,2]
[346849997,1735325438702,-154.09298051,0.00020102,2]
[346849998,1735325438711,-154.09298051,0.00020102,2]
[346849999,1735325438721,-154.09298051,0.00020102,2]
[346850000,1735325438731,-154.09298051,0.00020102,2]
[346850001,1735325438741,-154.09,0.00020102,2]
[346850002,1735325438751,-184.91157661,0.00020102,2]
[346850003,1735325438761,-184.91157661,0.00020102,2]
[346850004,1735325438770,-184.91157661,0.00020102,2]
[346850005,1735325438780,-184.91157661,0.00020102,2]
[346850006,1735325438790,-184.91157661,0.00020102,2]
[346850007,1735325438799,-184.91157661,0.00020102,2]
[346850008,1735325438809,-184.91157661,0.00020102,2]
[346850009,1735325438818,-184.91157661,0.00020102,2]
[346850010,1735325438828,-184.91157661,0.00020102,2]
[346850011,1735325438837,-184.91157661,0.00020102,2]
[346850012,1735325438846,-184.91157661,0.00020102,2]
[346850013,1735325438856,-184.91157661,0.00020102,2]
[346850014,1735325438866,-184.91157661,0.00020102,2]
[346850015,1735325438875,-184.91157661,0.00020102,2]
[346850016,1735325438885,-184.91157661,0.00020102,2]
[346850017,1735325438895,-184.91157661,0.00020102,2]
[346850018,1735325438904,-184.91157661,0.00020102,2]
[346850019,1735325438914,-184.91157661,0.00020102,2]
[346850020,1735325438924,-184.91157661,0.00020102,2]
[346850021,1735325438933,-184.91,0.00020102,2]
[346850022,1735325438943,-1052.23894669,0.00020102,2]
[346850023,1735325438953,-1052.23894669,0.00020102,2]
[346850024,1735325438962,-1052.23894669,0.00020102,2]
[346850025,1735325438971,-1052.23894669,0.00020102,2]
[346850026,1735325438981,-1052.23894669,0.00020102,2]
[346850027,1735325438991,-1052.23894669,0.00020102,2]
[346850028,1735325439000,-1052.23894669,0.00020102,2]
[346850029,1735325439010,-1052.23894669,0.00020102,2]
[346850030,1735325439020,-1052.23894669,0.00020102,2]
[346850031,1735325439030,-1052.23894669,0.00020102,2]
[346850032,1735325439039,-1052.23894669,0.00020102,2]
[346850033,1735325439049,-1052.23894669,0.00020102,2]
[346850034,1735325439156,-1052.23894669,0.00020102,2]
[346850035,1735325439168,-1052.23894669,0.00020102,2]
[346850036,1735325439178,-1052.23894669,0.00020102,2]
[346850037,1735325439188,-1052.23894669,0.00020102,2]
[346850038,1735325439198,-1052.23894669,0.00020102,2]
[346850039,1735325439207,-1052.23894669,0.00020102,2]
[346850040,1735325439217,-1052.23894669,0.00020102,2]
[346850041,1735325439226,-1052.23,0.00020102,2]
[346850042,1735325439235,-1578.35842004,0.00020102,2]
[346850043,1735325439245,-1578.35842004,0.00020102,2]
[346850044,1735325439254,-1578.35842004,0.00020102,2]
[346850045,1735325439264,-1578.35842004,0.00020102,2]
[346850046,1735325439273,-1578.35842004,0.00020102,2]
[346850047,1735325439285,-1578.35842004,0.00020102,2]
[346850048,1735325439294,-1578.35842004,0.00020102,2]
[346850049,1735325439304,-1578.35842004,0.00020102,2]
[346850050,1735325439314,-1578.35842004,0.00020102,2]
[346850051,1735325439326,-1578.35842004,0.00020102,2]
[346850052,1735325439336,-1578.35842004,0.00020102,2]
[346850053,1735325439345,-1578.35842004,0.00020102,2]
[346850054,1735325439355,-1578.35842004,0.00020102,2]
[346850055,1735325439366,-1578.35842004,0.00020102,2]
[346850056,1735325439376,-1578.35842004,0.00020102,2]
[346850057,1735325439386,-1578.35842004,0.00020102,2]
[346850058,1735325439396,-1578.35842004,0.00020102,2]
[346850059,1735325439406,-1578.35842004,0.00020102,2]
[346850060,1735325439416,-1578.35842004,0.00020102,2]
[346850061,1735325439427,-1578.35,0.00020102,2]
[346850062,1735325439437,-500.0,0.00020173,2]
[346850063,1735325439447,-187.55528289,0.00020186,2]
[346850064,1735325439457,-151.0,0.00020187,15]
[346850065,1735325439467,-151.0,0.00020187,15]
[346850066,1735325439477,-150.23,0.00020188,10]
[346850067,1735325439486,-202.53543627,0.00020188,10]
[346850068,1735325439498,-155.74300801,0.00020188,10]
[346850069,1735325439508,-150.23,0.00020188,10]
[346850070,1735325439518,-500.0,0.00020188,10]
[346850071,1735325439527,-150.23,0.00020188,10]
[346850072,1735325439537,-150.23,0.00020188,2]
[346850073,1735325439547,-150.23,0.00020188,10]
[346850074,1735325439556,-150.23,0.00020188,2]
[346850075,1735325439566,-420.0,0.00020197,2]
[346850076,1735325439575,-24583.65,0.000202,2]
[346850077,1735325439585,-151.0,0.00020201,2]
[346850078,1735325439595,-151.0,0.00020201,2]
[346850079,1735325439605,-151.0,0.00020201,2]
[346850080,1735325439615,-151.0,0.00020201,2]
[346850081,1735325439624,-151.0,0.00020201,2]
[346850082,1735325439634,-177.63983,0.00020201,2]
[346850083,1735325439644,-151.0,0.00020201,2]
[346850084,1735325439654,-151.0,0.00020201,2]
[346850085,1735325439664,-151.0,0.00020201,2]
[346850086,1735325439673,-151.0,0.00020201,2]
[346850087,1735325439683,-151.0,0.00020201,2]
[346850088,1735325439694,-151.0,0.00020201,2]
[346850089,1735325439703,-204.074826,0.00020201,2]
[346850090,1735325439712,-151.0,0.00020201,2]
[346850091,1735325439722,-151.0,0.00020201,2]
[346850092,1735325439743,-151.0,0.00020201,2]
[346850093,1735325439754,-151.0,0.00020201,2]
[346850094,1735325439764,-151.0,0.00020201,2]
[346850095,1735325439774,-151.0,0.00020201,2]
[346850096,1735325439784,-151.0,0.00020201,2]
[346850098,1735325439794,-151.0,0.00020201,2]
[346850100,1735325439805,-151.0,0.00020201,2]
[346850101,1735325439816,-151.0,0.00020201,2]
[346850102,1735325439826,-151.0,0.00020201,2]
[346850103,1735325439837,-151.0,0.00020201,2]
[346850104,1735325439847,-151.0,0.00020201,2]
[346850105,1735325439857,-151.0,0.00020201,2]
[346850106,1735325439869,-151.0,0.00020201,2]
[346850107,1735325439879,-151.0,0.00020201,2]
[346850108,1735325439889,-151.0,0.00020201,2]
[346850109,1735325439900,-151.0,0.00020201,2]
[346850110,1735325439909,-151.0,0.00020201,2]
[346850111,1735325439920,-151.0,0.00020201,2]
[346850113,1735325439930,-201.15650614,0.00020201,2]
[346850114,1735325439941,-1326.19347254,0.00020202,2]
[346850116,1735325439952,-8738.5535278,0.00020202,2]
[346850118,1735325439962,-151.0,0.00020202,2]
[346850120,1735325439971,-151.0,0.00020202,2]
[346850122,1735325439981,-151.0,0.00020202,2]
[346850124,1735325439991,-151.0,0.00020202,2]
[346850126,1735325440000,-151.0,0.00020202,2]
[346850128,1735325440010,-151.0,0.00020202,2]
[346850130,1735325440020,-151.0,0.00020202,2]
[346850132,1735325440029,-151.0,0.00020202,2]
[346850134,1735325440039,-151.0,0.00020202,2]
[346850136,1735325440049,-151.0,0.00020202,2]
[346850138,1735325440058,-151.830043,0.00020202,2]
[346850140,1735325440068,-151.0,0.00020202,2]
[346850142,1735325440077,-153.445269,0.00020202,2]
[346850144,1735325440087,-151.0,0.00020202,2]
[346850146,1735325440097,-151.0,0.00020202,2]
[346850148,1735325440107,-151.0,0.00020202,2]
[346850150,1735325440116,-151.0,0.00020202,2]
[346850152,1735325440126,-151.0,0.00020202,2]
[346850154,1735325440135,-151.0,0.00020202,2]
[346850156,1735325440145,-151.0,0.00020202,2]
[346850158,1735325440154,-151.0,0.00020202,2]
[346850160,1735325440165,-151.0,0.00020202,2]
[346850162,1735325440175,-151.0,0.00020202,2]
[346850164,1735325440184,-151.0,0.00020202,2]
[346850166,1735325440194,-249.772408,0.00020202,2]
[346850168,1735325440204,-165.979121,0.00020202,2]
[346850170,1735325440213,-165.979121,0.00020202,2]
[346850172,1735325440223,-165.979121,0.00020202,2]
[346850174,1735325440233,-165.979121,0.00020202,2]
[346850176,1735325440242,-165.979121,0.00020202,2]
[346850178,1735325440252,-165.979121,0.00020202,2]
[346850180,1735325440261,-165.979121,0.00020202,2]
[346850182,1735325440271,-165.979121,0.00020202,2]
[346850185,1735325440283,-165.979121,0.00020202,2]
[346850186,1735325440294,-165.979121,0.00020202,2]
[346850189,1735325440304,-165.979121,0.00020202,2]
[346850190,1735325440313,-165.979121,0.00020202,2]
[346850193,1735325440326,-165.979121,0.00020202,2]
[346850195,1735325440336,-165.979121,0.00020202,2]
[346850196,1735325440346,-165.979121,0.00020202,2]
[346850199,1735325440355,-165.979121,0.00020202,2]
[346850201,1735325440365,-165.979121,0.00020202,2]
[346850202,1735325440375,-165.979121,0.00020202,2]
[346850204,1735325440385,-165.979121,0.00020202,2]
[346850207,1735325440395,-165.97912,0.00020202,2]
[346850209,1735325440406,-151.0,0.00020202,2]
[346850211,1735325440416,-151.0,0.00020202,2]
[346850213,1735325440428,-151.0,0.00020202,2]
[346850215,1735325440439,-151.0,0.00020202,2]
[346850217,1735325440449,-151.0,0.00020202,2]
[346850219,1735325440459,-151.0,0.00020202,2]
[346850221,1735325440469,-199.440117,0.00020202,2]
[346850223,1735325440478,-151.0,0.00020202,2]
[346850225,1735325440488,-151.0,0.00020202,2]
[346850227,1735325440498,-151.0,0.00020202,2]
[346850229,1735325440507,-151.0,0.00020202,2]
[346850231,1735325440517,-242.128128,0.00020202,2]
[346850233,1735325440527,-886199.74289732,0.00020202,10]
[346850235,1735325440538,-498.0,0.00020202,7]
[346850237,1735325440547,-88313.55476685,0.00020202,10]
[346850327,1735325441527,-500.0,0.00020202,10]
[346850329,1735325441540,-18889.58584881,0.00020202,10]
[346850551,1735325444145,-2599.6918616,0.00020202,10]
[346850552,1735325444159,-14998.234884,0.00020202,10]
[346850553,1735325444170,-3103.16,0.00020202,10]
[346850554,1735325444181,-6911.81914692,0.00020202,10]
[346850582,1735325444585,-53.53001881,0.00020202,10]
[346850585,1735325444599,-691.52621665,0.00020202,10]
[346850589,1735325444631,500.0,0.00013591,2]
[346850591,1735325444644,-5219.08944457,0.00020202,10]
[346850594,1735325444656,-290.77627598,0.00020202,10]
[346850596,1735325444667,-9958.36921183,0.00020202,10]
[346850598,1735325444678,-249480.74957108,0.00020202,10]
[346850600,1735325444690,-4917.15,0.00020202,10]
[346850603,1735325444704,-343.2,0.00020202,10]
[346850607,1735325444733,500.0,0.00013865,2]
[346850611,1735325444762,500.0,0.00014139,2]
[346850615,1735325444794,500.0,0.00014413,2]
[346850617,1735325444809,-1498.50183996,0.00020202,10]
[346850640,1735325445013,-514.5,0.00020202,10]
[346850642,1735325445025,-679.99999999,0.00020202,10]
[346850646,1735325445056,500.0,0.00014687,2]
[346850650,1735325445086,500.0,0.00014961,2]
[346850668,1735325445243,500.0,0.00015235,2]
[346850742,1735325445901,500.0,0.00015509,2]
[346850783,1735325446278,-182.76102468,0.00019065,2]
[346850785,1735325446291,-4170.92496314,0.00020202,10]
[346850788,1735325446302,-29591.62491388,0.00020202,10]
[346850943,1735325447953,-657.75752294,0.00020202,10]
[346850948,1735325447987,500.0,0.00015783,2]
[346850952,1735325448021,500.0,0.00016701,2]
[346850957,1735325448058,500.0,0.00016057,2]
[346850962,1735325448096,500.0,0.00016975,2]
[346850967,1735325448137,500.0,0.00016331,2]
[346850981,1735325448258,500.0,0.00017249,2]
[346851003,1735325448462,500.0,0.00016605,2]
[346851037,1735325448784,500.0,0.00017523,2]
[346851064,1735325449035,500.0,0.00016879,2]
[346851081,1735325449677,500.0,0.00017797,2]
[346851087,1735325449973,500.0,0.00017153,2]
[346851088,1735325450303,394.0,0.00016303,2]
[346851107,1735325450750,500.0,0.00017427,2]
[346851108,1735325451293,500.0,0.00017701,2]
[346851127,1735325451881,500.0,0.00017975,2]
[346851128,1735325454556,500.0,0.00013216,2]
[346851129,1735325457331,500.0,0.00013216,2]
[346851131,1735325483682,500.0,0.00013214,2]
[346851132,1735325483955,511.37039502,0.00013488,2]
[346851134,1735325507971,444.10243117,0.00017971,2]
[346851135,1735325508678,400.90041065,0.00013216,2]
[346851136,1735325512475,500.0,0.00013216,2]
[346851137,1735325530166,150.0,0.000166,2]
[346851146,1735326442186,-270.08686671,0.00012373,2]
[346851147,1735326447100,-29.91313329,0.00012373,2]
[346851148,1735326447122,-500.0,0.00012499,2]
[346851149,1735326447144,-500.0,0.00012499,2]
[346851150,1735326447164,-500.0,0.00012499,2]
[346851151,1735326447186,-500.0,0.00012499,2]
[346851152,1735326447208,-500.0,0.00012499,2]
[346851153,1735326447231,-500.0,0.00012499,2]
[346851154,1735326447252,-500.0,0.00012499,2]
[346851155,1735326447274,-500.0,0.00012499,2]
[346851156,1735326447296,-500.0,0.00012499,2]
[346851157,1735326447318,-501.98076421,0.00012499,2]
[346851158,1735326447339,-503.40553746,0.00012499,2]
[346851159,1735326447362,-500.0,0.00012773,2]
[346851160,1735326447384,-500.0,0.00012773,2]
[346851161,1735326447407,-372.19160474,0.00012773,2]
[346851162,1735326447429,-500.0,0.00012773,2]
[346851163,1735326447451,-590.79,0.00012773,2]
[346851164,1735326447587,-500.0,0.00012773,2]
[346851165,1735326447613,-289.69,0.00013047,2]
[346851166,1735326447637,-500.0,0.00013047,2]
[346851167,1735326447659,-500.0,0.00013047,2]
[346851168,1735326447681,-500.0,0.00013047,2]
[346851169,1735326447702,-342.25858146,0.00013215,2]
[346851171,1735326547137,-7765.724433,0.00012524,2]
[346851172,1735326547158,-250.0,0.00012555,2]
[346851173,1735326547180,-400.80721081,0.00013083,2]
[346851174,1735326547202,-300.0,0.00013214,2]
[346851175,1735326547222,-500.0,0.00013215,2]
[346851176,1735326547244,-500.0,0.00013215,2]
[346851177,1735326547265,-500.0,0.00013215,2]
[346851178,1735326547287,-500.0,0.00013215,2]
[346851179,1735326547308,-500.0,0.00013215,2]
[346851180,1735326547330,-500.0,0.00013215,2]
[346851181,1735326547353,-500.0,0.00013317,2]
[346851182,1735326547375,-500.0,0.00013317,2]
[346851183,1735326547398,-500.0,0.00013317,2]
[346851184,1735326547420,-500.0,0.00013321,2]
[346851185,1735326547444,-500.0,0.00013321,2]
[346851186,1735326547466,-423.67,0.00013321,2]
[346851187,1735326547488,-500.0,0.00013489,2]
[346851188,1735326547511,-532.73131187,0.0001359,2]
[346851189,1735326547534,-186.35917394,0.0001359,2]
[346851190,1735326549115,-163.40022597,0.0001359,2]
[346851191,1735326560123,-150.24060009,0.0001359,2]
[346851192,1735326560145,-500.0,0.0001359,2]
[346851193,1735326560167,-500.0,0.00013591,2]
[346851194,1735326560188,-1000.0,0.00013591,2]
[346851195,1735326560209,-500.0,0.00013591,2]
[346851196,1735326560231,-532.58,0.00013591,2]
[346851197,1735326560252,-389.66592403,0.00013591,2]
[346851198,1735326560274,-283.16970756,0.00013591,2]
[346851199,1735326560296,-500.0,0.00013591,2]
[346851200,1735326560316,-500.0,0.00013591,2]
[346851201,1735326560337,-500.0,0.00013591,2]
[346851202,1735326560358,-595.40184192,0.00013591,2]
[346851203,1735326560378,-215.9798502,0.00013591,2]
[346851204,1735326560399,-500.0,0.00013591,2]
[346851205,1735326560420,-540.8552,0.00013591,2]
[346851206,1735326560440,-500.0,0.00013591,2]
[346851207,1735326560462,-471.52609906,0.00013591,2]
[346851208,1735326560485,-500.0,0.00013591,2]
[346851209,1735326560507,-500.0,0.00013591,2]
[346851210,1735326560528,-500.0,0.00013591,2]
[346851211,1735326560549,-500.0,0.00013591,2]
[346851212,1735326560569,-500.0,0.00013591,2]
[346851213,1735326560592,-500.0,0.00013591,2]
[346851214,1735326560612,-500.0,0.00013591,2]
[346851215,1735326560635,-500.0,0.00013591,2]
[346851216,1735326560656,-500.0,0.00013591,2]
[346851217,1735326560679,-157.74141854,0.00013591,2]
[346851218,1735326560699,-500.0,0.00013591,2]
[346851219,1735326560719,-500.0,0.00013591,2]
[346851220,1735326560739,-502.72421608,0.00013591,2]
[346851221,1735326560759,-500.0,0.00013591,2]
[346851222,1735326560882,-500.0,0.00013591,2]
[346851223,1735326560904,-500.0,0.00013591,2]
[346851224,1735326560924,-500.0,0.00013591,2]
[346851225,1735326560944,-502.24087025,0.00013591,2]
[346851226,1735326560965,-203.16154986,0.00013591,2]
[346851227,1735326560987,-500.0,0.00013591,2]
[346851228,1735326561009,-500.0,0.00013591,2]
[346851229,1735326561029,-500.0,0.00013591,2]
[346851230,1735326561049,-500.0,0.00013591,2]
[346851231,1735326561069,-501.28018746,0.00013591,2]
[346851232,1735326561090,-500.0,0.00013595,2]
[346851233,1735326561112,-500.0,0.00013595,2]
[346851234,1735326561134,-500.0,0.00013698,2]
[346851235,1735326561169,-500.0,0.00013698,2]
[346851236,1735326561191,-500.0,0.00013763,2]
[346851237,1735326561213,-1000.0,0.00013865,2]
[346851238,1735326561235,-500.0,0.00013865,2]
[346851239,1735326561257,-500.0,0.00013865,2]
[346851240,1735326561280,-500.0,0.00013865,2]
[346851241,1735326561303,-500.0,0.00013865,2]
[346851242,1735326561326,-500.0,0.00013865,2]
[346851243,1735326561348,-500.0,0.00013865,2]
[346851244,1735326561371,-500.0,0.00013865,2]
[346851245,1735326561395,-3503.25,0.00013865,2]
[346851246,1735326561418,-500.0,0.00013865,2]
[346851247,1735326561441,-500.0,0.00013865,2]
[346851248,1735326561464,-500.0,0.00013865,2]
[346851249,1735326561487,-500.0,0.00013865,2]
[346851250,1735326561510,-500.0,0.00013865,2]
[346851251,1735326561534,-496.75,0.00013865,2]
[346851252,1735326561555,-386.67,0.00013869,2]
[346851253,1735326561578,-500.0,0.00013869,2]